[Event "Late-Titled-Tuesday-Blitz-June-04-2024"]
[Site "Chess.com"]
[Date "2024.06.04"]
[Round "5"]
[White "DreamsAreFake"]
[Black "Kacparov"]
[Result "1/2-1/2"]
[WhiteElo "2704"]
[BlackElo "2908"]
[TimeControl "180+1"]
[EndTime "14:54:39 PDT"]
[Termination "Game drawn by repetition"]

1. Nf3 {[%clk 0:02:57.5]} 1... d5 {[%clk 0:03:00.2]} 2. g3 {[%clk 0:02:56.9]}
2... c5 {[%clk 0:03:00.3]} 3. Bg2 {[%clk 0:02:57]} 3... Nc6 {[%clk 0:03:00.8]}
4. d4 {[%clk 0:02:55.8]} 4... e6 {[%clk 0:02:59.8]} 5. O-O {[%clk 0:02:56.3]}
5... Nf6 {[%clk 0:02:59.6]} 6. c4 {[%clk 0:02:56.9]} 6... dxc4 {[%clk
0:02:58.4]} 7. dxc5 {[%clk 0:02:56.3]} 7... Qxd1 {[%clk 0:02:57.3]} 8. Rxd1
{[%clk 0:02:57.2]} 8... Bxc5 {[%clk 0:02:57.5]} 9. Nbd2 {[%clk 0:02:58]} 9... c3
{[%clk 0:02:56.7]} 10. bxc3 {[%clk 0:02:58.9]} 10... Ke7 {[%clk 0:02:44.9]} 11.
Nb3 {[%clk 0:02:58.9]} 11... Bd6 {[%clk 0:02:45.2]} 12. Nfd4 {[%clk 0:02:58.5]}
12... Nxd4 {[%clk 0:02:44.1]} 13. cxd4 {[%clk 0:02:58.4]} 13... Rd8 {[%clk
0:02:33.9]} 14. Bd2 {[%clk 0:02:47.7]} 14... Rb8 {[%clk 0:02:30.5]} 15. e4
{[%clk 0:02:47.3]} 15... Ba3 {[%clk 0:02:23.3]} 16. Bf4 {[%clk 0:02:40.6]} 16...
Ra8 {[%clk 0:02:22.6]} 17. d5 {[%clk 0:02:26.2]} 17... exd5 {[%clk 0:02:19.9]}
18. exd5 {[%clk 0:02:27.1]} 18... Bd6 {[%clk 0:02:16.5]} 19. Re1+ {[%clk
0:01:57.1]} 19... Kf8 {[%clk 0:02:16.2]} 20. Bg5 {[%clk 0:01:57.8]} 20... Bd7
{[%clk 0:02:11.5]} 21. Rac1 {[%clk 0:01:51.7]} 21... Rac8 {[%clk 0:02:10.4]} 22.
Bxf6 {[%clk 0:01:47.2]} 22... gxf6 {[%clk 0:02:10.2]} 23. Be4 {[%clk 0:01:47.2]}
23... h6 {[%clk 0:02:07.8]} 24. Kg2 {[%clk 0:01:46.4]} 24... Rxc1 {[%clk
0:02:02.5]} 25. Rxc1 {[%clk 0:01:47.3]} 25... Re8 {[%clk 0:01:53.4]} 26. Bf3
{[%clk 0:01:27.8]} 26... f5 {[%clk 0:01:43.9]} 27. Na5 {[%clk 0:01:27.3]} 27...
Rb8 {[%clk 0:01:38.3]} 28. Rb1 {[%clk 0:01:24.3]} 28... Bc8 {[%clk 0:01:35.6]}
29. Nc4 {[%clk 0:01:19.5]} 29... Bc5 {[%clk 0:01:35.2]} 30. d6 {[%clk
0:01:05.5]} 30... Be6 {[%clk 0:01:34.1]} 31. Na5 {[%clk 0:00:58.8]} 31... Bxd6
{[%clk 0:01:28.1]} 32. Nxb7 {[%clk 0:00:56.3]} 32... Be7 {[%clk 0:01:21]} 33. a4
{[%clk 0:00:56.2]} 33... a5 {[%clk 0:01:10.3]} 34. Rc1 {[%clk 0:00:55.6]} 34...
Bb4 {[%clk 0:01:08.3]} 35. Rc7 {[%clk 0:00:52.3]} 35... Bb3 {[%clk 0:01:05.7]}
36. Nc5 {[%clk 0:00:51.9]} 36... Bxc5 {[%clk 0:00:51.4]} 37. Rxc5 {[%clk
0:00:52.8]} 37... Bxa4 {[%clk 0:00:51.4]} 38. Rxa5 {[%clk 0:00:52.5]} 38... Bd7
{[%clk 0:00:51.3]} 39. Ra8 {[%clk 0:00:25]} 39... Rxa8 {[%clk 0:00:50.8]} 40.
Bxa8 {[%clk 0:00:25.9]} 40... Ke7 {[%clk 0:00:51.2]} 41. Kf3 {[%clk 0:00:26.4]}
41... Kf6 {[%clk 0:00:49]} 42. Kf4 {[%clk 0:00:26.8]} 42... Be6 {[%clk
0:00:49.4]} 43. h4 {[%clk 0:00:26.8]} 43... Bd7 {[%clk 0:00:49.5]} 44. Bd5
{[%clk 0:00:26.2]} 44... Bc8 {[%clk 0:00:47.8]} 45. Bc4 {[%clk 0:00:25.2]} 45...
Bd7 {[%clk 0:00:48.1]} 46. Bd3 {[%clk 0:00:25.6]} 46... Bc8 {[%clk 0:00:48.2]}
47. Bc2 {[%clk 0:00:25.6]} 47... Bd7 {[%clk 0:00:48.6]} 48. Bb1 {[%clk
0:00:24.8]} 48... Bc8 {[%clk 0:00:49]} 49. Bc2 {[%clk 0:00:25.4]} 49... Bd7
{[%clk 0:00:49.5]} 50. Bb1 {[%clk 0:00:26.2]} 50... Bc8 {[%clk 0:00:49.9]} 51.
Bc2 {[%clk 0:00:27]} 1/2-1/2

[Event "Late-Titled-Tuesday-Blitz-June-04-2024"]
[Site "Chess.com"]
[Date "2024.06.04"]
[Round "5"]
[White "ImportedItalianMaple"]
[Black "pirulillo"]
[Result "1-0"]
[WhiteElo "2552"]
[BlackElo "2370"]
[TimeControl "180+1"]
[EndTime "14:54:41 PDT"]
[Termination "ImportedItalianMaple won by checkmate"]

1. e4 {[%clk 0:03:00.9]} 1... c5 {[%clk 0:02:59.3]} 2. Nf3 {[%clk 0:03:01.2]}
2... e6 {[%clk 0:02:58.4]} 3. g3 {[%clk 0:03:00.9]} 3... Nc6 {[%clk 0:02:55.5]}
4. Bg2 {[%clk 0:03:00.7]} 4... d6 {[%clk 0:02:54.9]} 5. O-O {[%clk 0:02:59.1]}
5... Nf6 {[%clk 0:02:54.9]} 6. Re1 {[%clk 0:02:56.4]} 6... Be7 {[%clk
0:02:53.6]} 7. d4 {[%clk 0:02:52.4]} 7... cxd4 {[%clk 0:02:52.8]} 8. Nxd4 {[%clk
0:02:53.3]} 8... Bd7 {[%clk 0:02:52.7]} 9. c4 {[%clk 0:02:53]} 9... O-O {[%clk
0:02:49.3]} 10. b3 {[%clk 0:02:51.7]} 10... a6 {[%clk 0:02:44]} 11. Bb2 {[%clk
0:02:51.4]} 11... Nxd4 {[%clk 0:02:41.8]} 12. Qxd4 {[%clk 0:02:50.5]} 12... e5
{[%clk 0:02:42.1]} 13. Qd3 {[%clk 0:02:46.6]} 13... b5 {[%clk 0:02:42.3]} 14.
cxb5 {[%clk 0:02:36.8]} 14... axb5 {[%clk 0:02:41.7]} 15. Nc3 {[%clk 0:02:36.7]}
15... Qb6 {[%clk 0:02:39.9]} 16. b4 {[%clk 0:02:21.4]} 16... Rfc8 {[%clk
0:02:32.9]} 17. a3 {[%clk 0:02:20.4]} 17... Rab8 {[%clk 0:02:26.8]} 18. Rac1
{[%clk 0:02:19.2]} 18... Be6 {[%clk 0:02:26.4]} 19. h3 {[%clk 0:02:04.1]} 19...
Rc4 {[%clk 0:01:56.8]} 20. Qd2 {[%clk 0:01:47.2]} 20... h5 {[%clk 0:01:49.3]}
21. Nd5 {[%clk 0:01:37.8]} 21... Nxd5 {[%clk 0:01:42.8]} 22. exd5 {[%clk
0:01:38.7]} 22... Bf5 {[%clk 0:01:42.9]} 23. Bf1 {[%clk 0:01:34.4]} 23... Rcc8
{[%clk 0:01:25.8]} 24. Kh2 {[%clk 0:01:21.2]} 24... Bg6 {[%clk 0:01:17.2]} 25.
Bg2 {[%clk 0:01:07.9]} 25... Bf6 {[%clk 0:00:52.2]} 26. Rc6 {[%clk 0:01:05.6]}
26... Qd8 {[%clk 0:00:49]} 27. Rec1 {[%clk 0:00:54.8]} 27... Bf5 {[%clk
0:00:47.4]} 28. Qe2 {[%clk 0:00:48.5]} 28... g6 {[%clk 0:00:44.9]} 29. Rxc8
{[%clk 0:00:45.6]} 29... Rxc8 {[%clk 0:00:44.4]} 30. Qxb5 {[%clk 0:00:43.1]}
30... Rxc1 {[%clk 0:00:43.4]} 31. Bxc1 {[%clk 0:00:44]} 31... Bd7 {[%clk
0:00:42.9]} 32. Qa6 {[%clk 0:00:41.7]} 32... Qc7 {[%clk 0:00:41.4]} 33. Be3
{[%clk 0:00:41.6]} 33... h4 {[%clk 0:00:39.9]} 34. g4 {[%clk 0:00:34.5]} 34...
Qc2 {[%clk 0:00:35]} 35. Qxd6 {[%clk 0:00:28.6]} 35... Bxg4 {[%clk 0:00:15.8]}
36. Qxf6 {[%clk 0:00:26]} 36... Bf5 {[%clk 0:00:13.9]} 37. Bh6 {[%clk
0:00:25.7]} 37... Kh7 {[%clk 0:00:14.1]} 38. Qg7# {[%clk 0:00:25.4]} 1-0

[Event "Late-Titled-Tuesday-Blitz-June-04-2024"]
[Site "Chess.com"]
[Date "2024.06.04"]
[Round "5"]
[White "Larax"]
[Black "dasatcu90"]
[Result "1-0"]
[WhiteElo "2512"]
[BlackElo "2249"]
[TimeControl "180+1"]
[EndTime "14:54:43 PDT"]
[Termination "Larax won by resignation"]

1. e4 {[%clk 0:03:00.9]} 1... c6 {[%clk 0:02:59.6]} 2. d4 {[%clk 0:02:58.9]}
2... d5 {[%clk 0:03:00.5]} 3. Nc3 {[%clk 0:02:59.3]} 3... dxe4 {[%clk
0:03:00.4]} 4. Nxe4 {[%clk 0:03:00.2]} 4... Nf6 {[%clk 0:03:00.8]} 5. Nxf6+
{[%clk 0:03:00.4]} 5... exf6 {[%clk 0:03:01.7]} 6. c3 {[%clk 0:03:00.2]} 6...
Bd6 {[%clk 0:03:02.1]} 7. Bd3 {[%clk 0:03:00.8]} 7... O-O {[%clk 0:03:02.5]} 8.
Qc2 {[%clk 0:03:00.7]} 8... Re8+ {[%clk 0:03:03]} 9. Ne2 {[%clk 0:03:00.5]} 9...
h5 {[%clk 0:03:03.6]} 10. Bd2 {[%clk 0:02:35.6]} 10... Nd7 {[%clk 0:02:58.8]}
11. O-O-O {[%clk 0:02:26.7]} 11... b5 {[%clk 0:02:57.6]} 12. Ng3 {[%clk
0:02:20.5]} 12... Nb6 {[%clk 0:02:33.7]} 13. Nxh5 {[%clk 0:02:18.6]} 13... Be6
{[%clk 0:02:33.1]} 14. Kb1 {[%clk 0:02:08.2]} 14... Bg4 {[%clk 0:02:28.6]} 15.
Ng3 {[%clk 0:01:57.9]} 15... Bxd1 {[%clk 0:02:28.6]} 16. Rxd1 {[%clk 0:01:58.8]}
16... Bxg3 {[%clk 0:02:23]} 17. hxg3 {[%clk 0:01:58.4]} 17... Nc4 {[%clk
0:02:09.6]} 18. Bf4 {[%clk 0:01:53.3]} 18... Qd5 {[%clk 0:02:04.1]} 19. f3
{[%clk 0:01:38.2]} 19... Nd6 {[%clk 0:01:56.7]} 20. Bh7+ {[%clk 0:01:21.4]}
20... Kf8 {[%clk 0:01:56.1]} 21. Rh1 {[%clk 0:01:22]} 21... g6 {[%clk
0:01:42.9]} 22. Bxg6 {[%clk 0:01:12.3]} 22... fxg6 {[%clk 0:01:42.7]} 23. Bxd6+
{[%clk 0:00:34]} 23... Kg7 {[%clk 0:00:35]} 24. Bf4 {[%clk 0:00:23]} 24... Qf5
{[%clk 0:00:34.7]} 25. Qxf5 {[%clk 0:00:08.5]} 25... gxf5 {[%clk 0:00:35.6]} 26.
Rd1 {[%clk 0:00:04.1]} 26... Re2 {[%clk 0:00:35.7]} 27. Rd2 {[%clk 0:00:03.9]}
27... Rae8 {[%clk 0:00:35.1]} 28. Kc2 {[%clk 0:00:04]} 28... Kf7 {[%clk
0:00:30.5]} 29. b3 {[%clk 0:00:04.2]} 29... a6 {[%clk 0:00:29.8]} 30. c4 {[%clk
0:00:04.7]} 30... bxc4 {[%clk 0:00:29.4]} 31. bxc4 {[%clk 0:00:05.6]} 31...
Rxd2+ {[%clk 0:00:29.7]} 32. Kxd2 {[%clk 0:00:05.9]} 32... Rb8 {[%clk
0:00:28.7]} 33. Bxb8 {[%clk 0:00:05.5]} 33... Ke6 {[%clk 0:00:28]} 34. Bf4
{[%clk 0:00:06.4]} 1-0

[Event "Late-Titled-Tuesday-Blitz-June-04-2024"]
[Site "Chess.com"]
[Date "2024.06.04"]
[Round "5"]
[White "betta2004"]
[Black "TheAlienParty"]
[Result "1-0"]
[WhiteElo "2562"]
[BlackElo "2380"]
[TimeControl "180+1"]
[EndTime "14:54:43 PDT"]
[Termination "betta2004 won by resignation"]

1. Nf3 {[%clk 0:02:50.9]} 1... d5 {[%clk 0:02:53]} 2. b3 {[%clk 0:02:34.3]} 2...
c5 {[%clk 0:02:50.3]} 3. e3 {[%clk 0:02:33.8]} 3... Nc6 {[%clk 0:02:50]} 4. Bb5
{[%clk 0:02:33]} 4... Qc7 {[%clk 0:02:49.6]} 5. Bb2 {[%clk 0:02:32.1]} 5... Bg4
{[%clk 0:02:49.3]} 6. h3 {[%clk 0:02:32]} 6... Bxf3 {[%clk 0:02:48.6]} 7. Qxf3
{[%clk 0:02:32]} 7... e6 {[%clk 0:02:48.4]} 8. d3 {[%clk 0:02:32.3]} 8... f6
{[%clk 0:02:31.5]} 9. Nd2 {[%clk 0:02:30.7]} 9... Bd6 {[%clk 0:02:31]} 10. c4
{[%clk 0:02:15.8]} 10... Ne7 {[%clk 0:02:27.6]} 11. g4 {[%clk 0:02:15.1]} 11...
a6 {[%clk 0:02:25]} 12. Bxc6+ {[%clk 0:02:08.3]} 12... bxc6 {[%clk 0:02:24.2]}
13. e4 {[%clk 0:01:54.3]} 13... Ng6 {[%clk 0:02:18.8]} 14. exd5 {[%clk 0:01:37]}
14... exd5 {[%clk 0:02:09.4]} 15. cxd5 {[%clk 0:01:37.9]} 15... O-O {[%clk
0:02:05.8]} 16. O-O-O {[%clk 0:01:36.9]} 16... cxd5 {[%clk 0:02:02.4]} 17. Qxd5+
{[%clk 0:01:37.8]} 17... Kh8 {[%clk 0:02:01.9]} 18. h4 {[%clk 0:01:37.7]} 18...
Nf4 {[%clk 0:02:01.1]} 19. Qf3 {[%clk 0:01:37.3]} 19... Be5 {[%clk 0:01:59.4]}
20. Nc4 {[%clk 0:01:31.6]} 20... a5 {[%clk 0:01:55.8]} 21. g5 {[%clk 0:01:16.7]}
21... a4 {[%clk 0:01:54.5]} 22. Kc2 {[%clk 0:01:12.4]} 22... axb3+ {[%clk
0:01:53.3]} 23. axb3 {[%clk 0:01:13.3]} 23... Bxb2 {[%clk 0:01:51.6]} 24. Nxb2
{[%clk 0:01:14.2]} 24... Ra2 {[%clk 0:01:47.7]} 25. Ra1 {[%clk 0:01:07.1]} 25...
Rxa1 {[%clk 0:01:38.1]} 26. Rxa1 {[%clk 0:01:08]} 26... fxg5 {[%clk 0:01:37.9]}
27. Ra8 {[%clk 0:00:51.4]} 27... Qe7 {[%clk 0:01:26.2]} 28. hxg5 {[%clk
0:00:46.1]} 28... Kg8 {[%clk 0:01:23.4]} 29. Rxf8+ {[%clk 0:00:32.5]} 29... Qxf8
{[%clk 0:01:23]} 30. Nc4 {[%clk 0:00:33]} 30... Qf5 {[%clk 0:01:22.1]} 31. Qa8+
{[%clk 0:00:26]} 31... Qf8 {[%clk 0:01:21.5]} 32. Qxf8+ {[%clk 0:00:25.8]} 32...
Kxf8 {[%clk 0:01:21.2]} 33. Ne5 {[%clk 0:00:26.4]} 33... Ke7 {[%clk 0:01:19.9]}
34. Kc3 {[%clk 0:00:25.8]} 34... Ke6 {[%clk 0:01:19.7]} 35. Nf3 {[%clk
0:00:24.3]} 35... Kf5 {[%clk 0:01:19.6]} 36. d4 {[%clk 0:00:23.6]} 36... cxd4+
{[%clk 0:01:18]} 37. Kxd4 {[%clk 0:00:24.5]} 37... Kg4 {[%clk 0:01:18.1]} 38.
Ke4 {[%clk 0:00:24.7]} 38... h5 {[%clk 0:01:16.9]} 39. gxh6 {[%clk 0:00:24.4]}
39... gxh6 {[%clk 0:01:17]} 40. b4 {[%clk 0:00:25.3]} 40... Ne6 {[%clk
0:01:16.9]} 41. b5 {[%clk 0:00:25.2]} 41... h5 {[%clk 0:01:16.7]} 42. b6 {[%clk
0:00:19.6]} 42... Nc5+ {[%clk 0:01:15.3]} 43. Kd5 {[%clk 0:00:19.5]} 43... Nb7
{[%clk 0:01:14.8]} 44. Ne5+ {[%clk 0:00:18.7]} 44... Kf5 {[%clk 0:01:14.6]} 45.
Nf3 {[%clk 0:00:17.1]} 45... Kg4 {[%clk 0:01:14.2]} 46. Ng1 {[%clk 0:00:16.8]}
46... h4 {[%clk 0:01:13.4]} 47. Kc6 {[%clk 0:00:17.3]} 47... Na5+ {[%clk
0:01:13.2]} 48. Kc7 {[%clk 0:00:17.7]} 48... Kf4 {[%clk 0:01:12.8]} 49. b7
{[%clk 0:00:17.4]} 49... Nxb7 {[%clk 0:01:12.3]} 50. Kxb7 {[%clk 0:00:18.3]}
50... Ke4 {[%clk 0:01:12.7]} 51. Kc6 {[%clk 0:00:18.3]} 51... Kd3 {[%clk
0:01:13.6]} 52. Nh3 {[%clk 0:00:18.4]} 52... Kd2 {[%clk 0:01:14.5]} 53. Kd5
{[%clk 0:00:19]} 53... Ke1 {[%clk 0:01:15.4]} 54. f4 {[%clk 0:00:19.4]} 54...
Kf1 {[%clk 0:01:16.3]} 55. f5 {[%clk 0:00:20]} 55... Kg2 {[%clk 0:01:17.2]} 56.
Ng5 {[%clk 0:00:18.6]} 56... h3 {[%clk 0:01:16.7]} 57. Nxh3 {[%clk 0:00:17.7]}
57... Kxh3 {[%clk 0:01:17]} 58. f6 {[%clk 0:00:18.6]} 58... Kg4 {[%clk
0:01:17.5]} 59. f7 {[%clk 0:00:19.5]} 59... Kg5 {[%clk 0:01:18.2]} 60. f8=Q
{[%clk 0:00:20.4]} 60... Kg6 {[%clk 0:01:19]} 61. Qf4 {[%clk 0:00:20.7]} 1-0

[Event "Late-Titled-Tuesday-Blitz-June-04-2024"]
[Site "Chess.com"]
[Date "2024.06.04"]
[Round "5"]
[White "yobdc"]
[Black "Statham_01"]
[Result "0-1"]
[WhiteElo "2547"]
[BlackElo "2720"]
[TimeControl "180+1"]
[EndTime "14:54:44 PDT"]
[Termination "Statham_01 won by resignation"]

1. d4 {[%clk 0:03:00.9]} 1... d5 {[%clk 0:02:59.9]} 2. Nf3 {[%clk 0:03:01.3]}
2... Nf6 {[%clk 0:02:59.2]} 3. c4 {[%clk 0:03:01.2]} 3... e6 {[%clk 0:02:58]} 4.
Nc3 {[%clk 0:03:01.4]} 4... Bb4 {[%clk 0:02:56.4]} 5. e3 {[%clk 0:02:58.2]} 5...
O-O {[%clk 0:02:55.9]} 6. Bd3 {[%clk 0:02:58]} 6... Nc6 {[%clk 0:02:55]} 7. O-O
{[%clk 0:02:57.3]} 7... h6 {[%clk 0:02:52.9]} 8. h3 {[%clk 0:02:55.4]} 8... a6
{[%clk 0:02:52.7]} 9. Qc2 {[%clk 0:02:49.7]} 9... dxc4 {[%clk 0:02:50.5]} 10.
Bxc4 {[%clk 0:02:49.4]} 10... Bd6 {[%clk 0:02:51.2]} 11. Rd1 {[%clk 0:02:47.8]}
11... Qe7 {[%clk 0:02:50.8]} 12. a3 {[%clk 0:02:18.3]} 12... b5 {[%clk
0:02:50.8]} 13. Ba2 {[%clk 0:02:18]} 13... Bb7 {[%clk 0:02:50.8]} 14. e4 {[%clk
0:02:09.7]} 14... e5 {[%clk 0:02:49.4]} 15. d5 {[%clk 0:02:08]} 15... Nd4 {[%clk
0:02:44]} 16. Qd3 {[%clk 0:02:06.2]} 16... c5 {[%clk 0:02:30.1]} 17. dxc6 {[%clk
0:02:05.8]} 17... Bxc6 {[%clk 0:02:28.7]} 18. Nxd4 {[%clk 0:01:53.1]} 18... exd4
{[%clk 0:02:28.8]} 19. Qxd4 {[%clk 0:01:49.8]} 19... Rad8 {[%clk 0:02:28.2]} 20.
Nd5 {[%clk 0:01:47.1]} 20... Bxd5 {[%clk 0:01:53.4]} 21. exd5 {[%clk 0:01:48]}
21... Bc5 {[%clk 0:01:53.5]} 22. Qf4 {[%clk 0:01:37.5]} 22... Rfe8 {[%clk
0:01:33]} 23. Qg3 {[%clk 0:01:19]} 23... Ne4 {[%clk 0:01:20.1]} 24. Qb3 {[%clk
0:00:33.1]} 24... Nxf2 {[%clk 0:01:16.1]} 25. Rf1 {[%clk 0:00:33.3]} 25... Qe2
{[%clk 0:00:59.7]} 26. Bxh6 {[%clk 0:00:14]} 26... Ng4+ {[%clk 0:00:41.1]} 27.
Kh1 {[%clk 0:00:12.5]} 27... Nxh6 {[%clk 0:00:38.2]} 28. d6 {[%clk 0:00:12.1]}
28... Rxd6 {[%clk 0:00:21.8]} 29. Rxf7 {[%clk 0:00:06.1]} 29... Nxf7 {[%clk
0:00:21.4]} 30. Qxf7+ {[%clk 0:00:07]} 30... Kh8 {[%clk 0:00:21.3]} 31. Qh5+
{[%clk 0:00:07.1]} 31... Qxh5 {[%clk 0:00:20.8]} 0-1

[Event "Late-Titled-Tuesday-Blitz-June-04-2024"]
[Site "Chess.com"]
[Date "2024.06.04"]
[Round "5"]
[White "glucolisis04"]
[Black "dealshark"]
[Result "1-0"]
[WhiteElo "2276"]
[BlackElo "2407"]
[TimeControl "180+1"]
[EndTime "14:54:45 PDT"]
[Termination "glucolisis04 won by resignation"]

1. d4 {[%clk 0:03:00.9]} 1... d5 {[%clk 0:03:00.1]} 2. c4 {[%clk 0:03:01]} 2...
e6 {[%clk 0:03:01]} 3. Nc3 {[%clk 0:03:01.1]} 3... c5 {[%clk 0:03:01.9]} 4. cxd5
{[%clk 0:02:59.5]} 4... exd5 {[%clk 0:03:02.8]} 5. Nf3 {[%clk 0:02:56.8]} 5...
Nc6 {[%clk 0:03:03.4]} 6. dxc5 {[%clk 0:02:55.4]} 6... d4 {[%clk 0:03:03.5]} 7.
Na4 {[%clk 0:02:55.7]} 7... Bxc5 {[%clk 0:03:04.2]} 8. Nxc5 {[%clk 0:02:54.9]}
8... Qa5+ {[%clk 0:03:04.9]} 9. Bd2 {[%clk 0:02:52.7]} 9... Qxc5 {[%clk
0:03:05.6]} 10. e3 {[%clk 0:02:51.8]} 10... Nf6 {[%clk 0:03:04]} 11. exd4 {[%clk
0:02:31.6]} 11... Nxd4 {[%clk 0:03:01.9]} 12. Nxd4 {[%clk 0:02:30.5]} 12... Qxd4
{[%clk 0:02:59.4]} 13. Bc3 {[%clk 0:02:30.9]} 13... Qe4+ {[%clk 0:02:55.2]} 14.
Qe2 {[%clk 0:02:30.2]} 14... O-O {[%clk 0:02:48.7]} 15. Bxf6 {[%clk 0:02:19.2]}
15... Qxe2+ {[%clk 0:02:48.7]} 16. Bxe2 {[%clk 0:02:20.1]} 16... gxf6 {[%clk
0:02:49.2]} 17. O-O {[%clk 0:02:14.7]} 17... Be6 {[%clk 0:02:46.3]} 18. Bf3
{[%clk 0:02:14]} 18... Rfd8 {[%clk 0:02:39.2]} 19. b3 {[%clk 0:02:00.8]} 19...
Rab8 {[%clk 0:02:32.2]} 20. Rfd1 {[%clk 0:01:59]} 20... b6 {[%clk 0:02:29.5]}
21. Kf1 {[%clk 0:01:47.1]} 21... Kf8 {[%clk 0:02:28.5]} 22. Rac1 {[%clk
0:01:42.3]} 22... Rxd1+ {[%clk 0:02:11.8]} 23. Bxd1 {[%clk 0:01:37.3]} 23... Rb7
{[%clk 0:02:02.7]} 24. Bf3 {[%clk 0:01:28.7]} 24... Rd7 {[%clk 0:01:57.7]} 25.
Ke2 {[%clk 0:01:21.5]} 25... Ke7 {[%clk 0:01:57.3]} 26. Be4 {[%clk 0:01:09.2]}
26... f5 {[%clk 0:01:54.9]} 27. Bd3 {[%clk 0:01:06.8]} 27... Kd8 {[%clk
0:01:38.5]} 28. Bb5 {[%clk 0:01:01.5]} 28... Rd5 {[%clk 0:01:33.8]} 29. Rd1
{[%clk 0:00:54.8]} 29... Ke7 {[%clk 0:01:24]} 30. Rxd5 {[%clk 0:00:48.3]} 30...
Bxd5 {[%clk 0:01:24.3]} 31. g3 {[%clk 0:00:38.4]} 31... Kd6 {[%clk 0:01:18.7]}
32. Bd3 {[%clk 0:00:37.2]} 32... Be6 {[%clk 0:01:10.8]} 33. Ke3 {[%clk
0:00:36.4]} 33... Ke5 {[%clk 0:01:09]} 34. f4+ {[%clk 0:00:36.2]} 34... Kd6
{[%clk 0:01:09.2]} 35. Kd4 {[%clk 0:00:36.1]} 35... h6 {[%clk 0:00:57]} 36. Bc4
{[%clk 0:00:34.3]} 36... a5 {[%clk 0:00:47.7]} 37. Bxe6 {[%clk 0:00:29.5]} 37...
fxe6 {[%clk 0:00:46.8]} 38. Kc4 {[%clk 0:00:29]} 38... e5 {[%clk 0:00:44.7]} 39.
fxe5+ {[%clk 0:00:28.8]} 39... Kxe5 {[%clk 0:00:45.3]} 40. Kb5 {[%clk
0:00:20.5]} 40... h5 {[%clk 0:00:41.3]} 41. Kxb6 {[%clk 0:00:18.9]} 41... h4
{[%clk 0:00:41.8]} 42. Kxa5 {[%clk 0:00:18.4]} 42... hxg3 {[%clk 0:00:39.4]} 43.
hxg3 {[%clk 0:00:18.5]} 43... Ke4 {[%clk 0:00:37.1]} 44. b4 {[%clk 0:00:19.1]}
44... Kf3 {[%clk 0:00:38]} 45. b5 {[%clk 0:00:19.8]} 45... Kxg3 {[%clk
0:00:38.6]} 46. b6 {[%clk 0:00:20.5]} 1-0

[Event "Late-Titled-Tuesday-Blitz-June-04-2024"]
[Site "Chess.com"]
[Date "2024.06.04"]
[Round "5"]
[White "xasid81"]
[Black "ENajer77"]
[Result "0-1"]
[WhiteElo "2634"]
[BlackElo "2859"]
[TimeControl "180+1"]
[EndTime "14:54:49 PDT"]
[Termination "ENajer77 won by resignation"]

1. e4 {[%clk 0:03:00.9]} 1... e6 {[%clk 0:02:56.8]} 2. d4 {[%clk 0:02:57.1]}
2... d5 {[%clk 0:02:57.4]} 3. exd5 {[%clk 0:02:54.5]} 3... exd5 {[%clk
0:02:56.7]} 4. Nf3 {[%clk 0:02:55.4]} 4... Nc6 {[%clk 0:02:55.8]} 5. h3 {[%clk
0:02:54.5]} 5... Bd6 {[%clk 0:02:54.1]} 6. c3 {[%clk 0:02:54]} 6... Nge7 {[%clk
0:02:52.1]} 7. Bd3 {[%clk 0:02:52.5]} 7... Bf5 {[%clk 0:02:50.8]} 8. Qc2 {[%clk
0:02:51.4]} 8... Qd7 {[%clk 0:02:48.8]} 9. Be3 {[%clk 0:02:49.1]} 9... O-O-O
{[%clk 0:02:44.5]} 10. Nbd2 {[%clk 0:02:49]} 10... Rhe8 {[%clk 0:02:43.1]} 11.
O-O-O {[%clk 0:02:47.8]} 11... Kb8 {[%clk 0:02:40.1]} 12. Rde1 {[%clk
0:02:46.8]} 12... h6 {[%clk 0:02:36.9]} 13. Nh4 {[%clk 0:02:41.2]} 13... Bxd3
{[%clk 0:02:34.4]} 14. Qxd3 {[%clk 0:02:42.1]} 14... g5 {[%clk 0:02:33.8]} 15.
Nhf3 {[%clk 0:02:41.4]} 15... f5 {[%clk 0:02:26.2]} 16. Nb3 {[%clk 0:02:40.1]}
16... f4 {[%clk 0:02:19.9]} 17. Bd2 {[%clk 0:02:39.7]} 17... Qf5 {[%clk
0:02:17.5]} 18. Qxf5 {[%clk 0:02:35.9]} 18... Nxf5 {[%clk 0:02:16.8]} 19. Rxe8
{[%clk 0:02:29.8]} 19... Rxe8 {[%clk 0:02:15.5]} 20. Re1 {[%clk 0:02:30.7]}
20... Re4 {[%clk 0:02:13.7]} 21. Kd1 {[%clk 0:02:23.4]} 21... Kc8 {[%clk
0:02:10.3]} 22. Bc1 {[%clk 0:02:22.6]} 22... Kd7 {[%clk 0:02:08.6]} 23. Nbd2
{[%clk 0:02:21.9]} 23... Re6 {[%clk 0:02:08]} 24. Rxe6 {[%clk 0:02:21.1]} 24...
Kxe6 {[%clk 0:02:07.5]} 25. Ke2 {[%clk 0:02:16.9]} 25... b6 {[%clk 0:02:05]} 26.
Kd3 {[%clk 0:02:16.3]} 26... Nce7 {[%clk 0:02:01.7]} 27. Nf1 {[%clk 0:02:15.9]}
27... c5 {[%clk 0:02:01.5]} 28. b3 {[%clk 0:02:07.4]} 28... b5 {[%clk
0:01:58.6]} 29. c4 {[%clk 0:01:49.6]} 29... bxc4+ {[%clk 0:01:38.8]} 30. bxc4
{[%clk 0:01:50.5]} 30... Nc6 {[%clk 0:01:38.5]} 31. dxc5 {[%clk 0:01:08.9]}
31... Bxc5 {[%clk 0:01:37.5]} 32. cxd5+ {[%clk 0:00:58.9]} 32... Kxd5 {[%clk
0:01:37.2]} 33. g4 {[%clk 0:00:52.6]} 33... Nd6 {[%clk 0:01:20]} 34. Ke2 {[%clk
0:00:33.9]} 34... Ne4 {[%clk 0:01:19.9]} 35. Bb2 {[%clk 0:00:28]} 35... Nd4+
{[%clk 0:01:05.3]} 36. Bxd4 {[%clk 0:00:24.9]} 36... Bxd4 {[%clk 0:01:06]} 37.
Nxd4 {[%clk 0:00:21.8]} 37... Kxd4 {[%clk 0:01:05.5]} 38. Nh2 {[%clk 0:00:20.3]}
38... Nc3+ {[%clk 0:01:03.5]} 39. Kd2 {[%clk 0:00:19.3]} 39... Nxa2 {[%clk
0:01:01.8]} 40. h4 {[%clk 0:00:19]} 40... Ke4 {[%clk 0:00:57.4]} 41. hxg5 {[%clk
0:00:18.8]} 41... hxg5 {[%clk 0:00:56.5]} 42. Ke2 {[%clk 0:00:15.3]} 42... Nc3+
{[%clk 0:00:55.9]} 43. Kd2 {[%clk 0:00:15.9]} 43... Nb5 {[%clk 0:00:55.4]} 44.
f3+ {[%clk 0:00:14.1]} 44... Kd5 {[%clk 0:00:49.3]} 45. Kd3 {[%clk 0:00:10.9]}
45... Nd4 {[%clk 0:00:49.2]} 46. Kc3 {[%clk 0:00:11.3]} 46... a5 {[%clk
0:00:47.9]} 47. Kb2 {[%clk 0:00:09.8]} 47... Kc4 {[%clk 0:00:46.6]} 0-1